Cogmind - Beta 9.6 @@@ ROGUE MODE // 2020.08.01 @ 12:34:41 Player: TaxEvasionist Result: Destroyed by Y-45 Defender with Beam Rifle Performance ------------- Evolutions (1) 500 Regions Visited (2) 400 Robots Destroyed (12) 60 Value Destroyed (447) 447 Prototype IDs (0) 0 Alien Tech Used (0) 0 Bonus (0) 0 TOTAL SCORE: 1407 Bonus ------- None Cogmind --------- Core Integrity 0/400 Matter 300/300 Energy 100/100 System Corruption 1% Temperature Cool (15) Movement Core (350) Ox6 Location -9/Materials Parts ------- > --- POWER (1) -------- (None) > --- PROPULSION (3) --- (None) > --- UTILITY (3) ------ Small Storage Unit Medium Storage Unit Medium Storage Unit > --- WEAPON (2) ------- (None) > --- INVENTORY (14) --- Light Treads Light Treads Aluminum Leg Aluminum Leg Aluminum Leg Aluminum Leg Aluminum Leg Small Storage Unit Power Shielding Power Shielding Peak State ------------ > --- POWER ------------ Light Ion Engine > --- PROPULSION ------- Aluminum Leg Aluminum Leg Aluminum Leg > --- UTILITY ---------- Small Storage Unit Medium Storage Unit Medium Storage Unit > --- WEAPON ----------- Small Laser Assault Rifle > --- INVENTORY -------- Light Treads Light Treads Aluminum Leg Aluminum Leg Aluminum Leg Aluminum Leg Aluminum Leg Small Storage Unit Power Shielding Power Shielding [Rating: 10] Favorites ----------- Power Light Ion Engine Engine Light Ion Engine Propulsion Aluminum Leg Leg Aluminum Leg Utility Medium Storage Unit Storage Medium Storage Unit Weapon Assault Rifle Energy Gun Small Laser Ballistic Gun Assault Rifle Build | -11 -10 -9 ------- Run | Scr Mat Mat Slots Evolved 2 | . . 2 Power . | . . . Propulsion 1 | . . 1 Utility 1 | . . 1 Weapon . | . . . Parts Attached 20 | 6 12 2 Power 2 | 1 1 . Engine 2 | 1 1 . Core . | . . . Reactor . | . . . Propulsion 7 | 2 4 1 Treads . | . . . Leg 7 | 2 4 1 Wheel . | . . . Hover . | . . . Flight . | . . . Utility 5 | 1 3 1 Device . | . . . Storage 5 | 1 3 1 Processor . | . . . Hackware . | . . . Protection . | . . . Artifact . | . . . Weapon 6 | 2 4 . Energy Gun 3 | . 3 . Energy Cannon . | . . . Ballistic Gun 3 | 2 1 . Ballistic Cannon . | . . . Launcher . | . . . Special Weapon . | . . . Impact Weapon . | . . . Slashing Weapon . | . . . Piercing Weapon . | . . . Special Melee Weapon . | . . . Unidentified Prototypes . | . . . Parts Lost 11 | . 5 6 Power 2 | . 1 1 Propulsion 4 | . 1 3 Utility . | . . . Weapon 5 | . 3 2 Highest Loss Streak 6 | . 4 6 Average Slot Usage (%) 84 | . 87 72 Engine 11 | . 13 5 Leg 26 | . 28 20 Storage 24 | . 23 33 Energy Gun 5 | . 5 5 Ballistic Gun 14 | . 16 6 Naked Turns . | . . . Heaviest Build 26 | 12 22 26 Greatest Support 30 | 20 20 30 Greatest Overweight (x) 6 | 1 1 6 Average Overweight (x) . | . . . Largest Inventory Capacity 14 | 6 12 14 Average Capacity 9 | 5 9 13 Most Carried 12 | 6 12 11 Average Carried 8 | 4 8 10 Final Capacity 14 | 6 12 14 Final Carried 12 | 5 12 10 Class Distribution -------------------- 90% | Mutant 9% | Scavenger-Mutant Dominant Class ---------------- Mutant | -10/Materials Scavenger-Mutant | -9/Materials Resources | -11 -10 -9 ----------- Run | Scr Mat Mat Matter Collected 536 | 198 338 . Remotely . | . . . Salvage Created 517 | . 517 . Parts 30 | . 30 . Haulers Intercepted . | . . . Recyclers Shooed . | . . . Parts Field Recycled . | . . . Retrieved Matter . | . . . Parts Self-Destructed . | . . . Prevented . | . . . Kills | -11 -10 -9 ------- Run | Scr Mat Mat Combat Hostiles Destroyed 12 | . 12 . Guns 12 | . 12 . Classes Destroyed 1 | . 1 . Grunt 12 | . 12 . Best Kill Streak 4 | . 4 . Combat Bots Only 4 | . 4 . Max Kills in Single Turn 1 | . 1 . Gunslinging . | . . . Exploded . | . . . Melee . | . . . Uniques/NPCs Destroyed . | . . . Combat | -11 -10 -9 -------- Run | Scr Mat Mat Damage Taken 1762 | . 858 904 Core 516 | . 108 408 Absorbed by Shields . | . . . Core Remaining (%) 78 | 100 56 . Volleys Fired 52 | . 52 . Largest 2 | . 2 . Hottest 60 | . 60 . Shots Fired 78 | . 78 . Gun 78 | . 78 . Cannon . | . . . Launcher . | . . . Special . | . . . Kinetic 67 | . 67 . Thermal 11 | . 11 . Explosive . | . . . Electromagnetic . | . . . Robot Hit Streak 9 | . 9 . Robot Miss Streak 2 | . 2 . Penetration Max . | . . . Secondary Targets . | . . . Shots Hit Robots 56 | . 56 . Core Hits 38 | . 28 10 Critical Hits 1 | . 1 . Critical Kills 1 | . 1 . Critical Parts Destroyed . | . . . Melee Attacks . | . . . Impact . | . . . Slashing . | . . . Piercing . | . . . Sneak Attacks . | . . . Combat Hostiles . | . . . Follow-up Attacks . | . . . Damage Inflicted 652 | . 618 34 Guns 618 | . 618 . Cannons . | . . . Explosions . | . . . Melee . | . . . Ramming 34 | . . 34 Kinetic 524 | . 524 . Thermal 94 | . 94 . Explosive . | . . . Electromagnetic . | . . . Impact . | . . . Slashing . | . . . Piercing . | . . . Highest Corruption 1 | . . 1 Average Corruption 1 | . . 1 Corruption Purged . | . . . Overload Shots . | . . . Overflow Damage . | . . . Projectiles . | . . . Explosions . | . . . Melee . | . . . Knockbacks . | . . . Impact . | . . . Kinetic . | . . . Secondary . | . . . Self-Inflicted Damage 7 | . . 7 Shots . | . . . Rammed 18 | . . 18 Targets Rammed 26 | . . 26 Kicked 8 | . . 8 Crushed . | . . . Highest Temperature 54 | . 54 . Average Temperature 17 | . 17 . Received Heat Transfer 714 | . 354 360 Siege Activations . | . . . Robots Corrupted . | . . . Combat Hostiles . | . . . Parts Fried . | . . . Impact Corruptions . | . . . Robots Melted . | . . . Combat Hostiles . | . . . Parts Melted . | . . . Heat Transferred 200 | . 200 . Parts Sabotaged . | . . . Parts Stolen . | . . . Parts Stripped . | . . . Power Chain Reactions . | . . . Missiles Intercepted . | . . . Alert | -11 -10 -9 ------- Run | Scr Mat Mat Peak Influence 250 | . 250 31 Average Influence 79 | . 104 18 Maximum Alert Level 1 | . 1 . Low Security (%) 85 | 100 79 100 Level 1 14 | . 20 . Level 2 . | . . . Level 3 . | . . . Level 4 . | . . . Level 5 . | . . . High Security . | . . . Max Security . | . . . Squads Dispatched 4 | . 3 1 Investigation 2 | . 1 1 Extermination . | . . . Reinforcement 2 | . 2 . Assault . | . . . Garrison . | . . . Intercept . | . . . Construction Impeded . | . . . Haulers Reinforced . | . . . Stealth | -11 -10 -9 --------- Run | Scr Mat Mat Distress Signals 3 | . 3 . Communications Jammed . | . . . Distress Signals . | . . . Times Spotted 25 | . 22 3 Peak Tracking Total 5 | . 5 3 Tactical Retreats 1 | . 1 . Traps | -11 -10 -9 ------- Run | Scr Mat Mat Traps Triggered 1 | . . 1 Indirectly . | . . . Trap Hack Attempts . | . . . Triggered . | . . . Disarmed . | . . . Reprogrammed . | . . . Reused . | . . . Traps Extracted . | . . . Installed . | . . . Triggered . | . . . Machines | -11 -10 -9 ---------- Run | Scr Mat Mat Machines Disabled . | . . . Max in Single Turn . | . . . Machines Sabotaged . | . . . Garrisons Compromised . | . . . Overloaded Fab Kills . | . . . Fab Network Shutdowns . | . . . Hacking | -11 -10 -9 --------- Run | Scr Mat Mat Machines Accessed 2 | . 1 1 Terminals 2 | . 1 1 Fabricators . | . . . Repair Stations . | . . . Recycling Units . | . . . Scanalyzers . | . . . Garrison Access . | . . . Total Hacks 8 | . 3 5 Successful 2 | . 2 . Failed 6 | . 1 5 Catastrophic . | . . . Database Lockouts . | . . . Manual 8 | . 2 6 Terminals 8 | . 3 5 Fabricators . | . . . Repair Stations . | . . . Recycling Units . | . . . Scanalyzers . | . . . Garrison Access . | . . . Terminal Hacks 2 | . 2 . Alert Level 1 | . 1 . Unreport Threat 1 | . 1 . Fabricator Hacks . | . . . Repair Station Hacks . | . . . Recycling Unit Hacks . | . . . Scanalyzer . | . . . Garrison Access Hacks . | . . . Unauthorized Hacks . | . . . Terminals . | . . . Fabricators . | . . . Repair Stations . | . . . Recycling Units . | . . . Scanalyzers . | . . . Garrison Access . | . . . Data Cores Recovered . | . . . Used . | . . . Hacking Detections 2 | . 1 1 Full Trace Events 2 | . 1 1 Feedback Events 1 | . . 1 Corruption 1 | . . 1 Feedback Blocked . | . . . Robot Schematics Acquired . | . . . Robots Built . | . . . Matter . | . . . Time . | . . . Total Robot Build Rating . | . . . Part Schematics Acquired . | . . . Parts Built . | . . . Matter . | . . . Time . | . . . Total Part Build Rating . | . . . Parts Repaired . | . . . Time . | . . . Parts Recycled . | . . . Recycled Matter . | . . . Retrieved Matter . | . . . Retrieved Components . | . . . Parts Scanalyzed . | . . . Part Schematics Acquired . | . . . Parts Damaged . | . . . Bothacking | -11 -10 -9 ------------ Run | Scr Mat Mat Used RIF Installer . | . . . Robots Hacked . | . . . Non-combat . | . . . Combat . | . . . Robot Hacks Applied . | . . . Relay Couplers Released . | . . . Robots Rewired . | . . . Allies Hacked . | . . . Hacks Repelled . | . . . Allies | -11 -10 -9 -------- Run | Scr Mat Mat Total Allies . | . . . Largest Group . | . . . Highest-Rated Group . | . . . Highest-Rated Ally . | . . . Total Orders . | . . . Ally Attacks . | . . . Total Damage . | . . . Kills . | . . . Allies Corrupted . | . . . Allies Melted . | . . . Intel | -11 -10 -9 ------- Run | Scr Mat Mat Robot Analysis Total . | . . . Derelict Logs Recovered . | . . . Drone Launches . | . . . Drone Recoveries . | . . . Exploration | -11 -10 -9 ------------- Run | Scr Mat Mat Turns Passed 781 | 82 570 129 Spaces Moved 400 | 67 275 58 Core 31 | 30 . 1 Treads . | . . . Legs 369 | 37 275 57 Wheels . | . . . Hover . | . . . Flight . | . . . Fastest Speed 50 | 50 120 120 Average Speed 127 | 99 134 126 Slowest Speed 350 | 120 150 350 Overloaded Moves . | . . . Propulsion Burnouts . | . . . Robots Hopped . | . . . Cave-ins Triggered . | . . . Exploration Rate (%) 18 | 3 45 8 Regions Visited 2 Branch Regions . Pre-discovered Areas . | . . . Known Exits Taken . | . . . Unknown Exits Taken 2 | 1 1 . Scrap Searched . | . . . Spaces Dug . | . . . Terrain Destroyed . | . . . Melee . | . . . Projectile . | . . . AOE . | . . . Actions | -11 -10 -9 --------- Run | Scr Mat Mat Total 568 | 85 397 86 Wait 49 | . 49 . Move 398 | 66 274 58 Hop . | . . . Pick Up 19 | 12 7 . Fast Attach 5 | . 5 . Attach 10 | 6 2 2 Detach . | . . . Swap 5 | . 5 . Drop 4 | 1 3 . Fire 52 | . 52 . Melee . | . . . Ram 10 | . . 10 Kick 16 | . . 16 Crush . | . . . Escape Stasis . | . . . Rewire . | . . . Trap . | . . . Miscellaneous . | . . . Route ------- -11/Scrapyard -10/Materials -9/Materials History --------- Turn | Location | Event 23 | -11/Scrapyard | Discovered new exit (range 15) 83 | -11/Scrapyard | Entered Materials 295 | -10/Materials | Lost 4 parts (1p1n2w) 315 | -10/Materials | Build established: Mutant 536 | -10/Materials | Discovered new exit (range 13) 653 | -10/Materials | Entered another Materials area 653 | -9/Materials | Evolved 2 slots: Propulsion x1, Utility x1 762 | -9/Materials | Core integrity fell below 50% 774 | -9/Materials | Core integrity fell below 20% 777 | -9/Materials | Lost 6 parts (1p3n2w) 782 | -9/Materials | Destroyed by Y-45 Defender with Beam Rifle Last Messages --------------- 00733_ Kicked Y-45 Defender out of the way. 00733_ K-01 Serf cleans the Terminal. 00734_ Slammed into Y-45 Defender. 00735_ Kicked Y-45 Defender out of the way. 00736_ Slammed into Y-45 Defender. 00739_ Kicked Y-45 Defender out of the way. 00740_ Slammed into Y-45 Defender. 00742_ Kicked G-34 Mercenary out of the way. 00745_ Slammed into G-34 Mercenary. 00745_ Aluminum Leg destroyed. 00746_ Slammed into Y-45 Defender. 00766_ T-07 Excavator is excavating. 00767_ Slammed into Y-45 Defender. 00771_ T-07 Excavator is excavating. 00774_ Slammed into Y-45 Defender. 00775_ T-07 Excavator is excavating. 00778_ Slammed into G-34 Mercenary. 00779_ T-07 Excavator is excavating. 00780_ K-01 Serf collects debris. 00781_ Slammed into Y-45 Defender. Map ----- +----------------------------------------------------+ | | | | | | | | | | | | | | | | | | | | | | | | | | | | | | | ???????????????????###???????????????????????????? | | ???????????????????# k???????????????????????????? | | ??????????????###### t ??????????????????????????? | | ########??????? ??????????????????????????? | | #???????? ##????????????????????????? | | ########### ##"T"#########????????????????? | | +????????????????? | | #####+############ #????????????????? | | ?# #???#""" #????????????????? | | ?# ""#???#"R " g + ??????????????? | | ?# Y"#???#""" "" @Y###### "?????????????? | | ?# ""#???#### "" %"#?????????????????????? | | ?# #??????# """%%"#?????????????????????? | | ?#""" #??????# "" %%"#?????????????????????? | | ?#""" #??????# """%%T#?????????????????????? | | ?#""" #??????# """%%"#???????#?????????????? | | ?# #?????## """%g"#???? #?????????????? | | ?##########?????# "%% "### #?????????????? | | ????????????????# %% +?????????????? | | ????????????????# %%%### #?????????????? | | ????????????????###### %%#?????? #?????????????? | | ?????????????????????###;###?????????????????????? | | ??????????????????????? ???????????????????????? | | ?????????????????????? !!???????????????????????? | | ?????????????????????# != ??????????????????????? | | ?????????????????????#= ??????????????????????? | | ?????????????????????# ?????????????????????? | | ?????????????????????# ?????????????????????? | | ?????????????????????########????????????????????? | | ?????????????????????????????????????????????????? | | ?????????????????????????????????????????????????? | | ?????????????????????????????????????????????????? | | ?????????????????????????????????????????????????? | | ?????????????????????????????????????????????????? | | ?????????????????????????????????????????????????? | +----------------------------------------------------+ Best States ------------- Heat Dissipation 28 Energy Generation 10 Energy Capacity 250 Matter Stores 300 Matter Capacity 300 Sight Range 16 Terrain Scan Density 10 Evasion (%) 50 Item Schematics ----------------- None Robot Schematics ------------------ None Fabricated ------------ Nothing Alien Tech Used ----------------- None Achievements -------------- None Challenges ------------ None Game ------ Seed ImprovedChainImmobilizer Manual? 0 Play Time 00:10:03 Cumulative 11.5 hours Start 2020.08.01 @ 12:23:18 End 2020.08.01 @ 12:34:41 Sessions 1 Manual Loads 0 Difficulty Rogue Special Mode None Game No. 17 Rogue 15 Adventurer 0 Explorer 2 Win Type - Total 0 Types 0/0/0/0/0/0/0 Lore% 16 Gallery% 23 Achievement% 20 Wizard Run 0 Options --------- ASCII 1 Keyboard 1 Movement Numpad Keybinds 0 Fullscreen 1 Font 18/SmallcapsGlow Map View 76x50 Tactical HUD 1 Map Filters NONE Filters NONE Steam 1 RUN: a27165b7-08ff-4046-99a7-541d92a8be00